fUST/lending_fUST_20250702
["ID","MTS","AMOUNT","RATE_DAILY","PERIOD"]
[369064353,1751451044636,-460.0,0.00017534,2]
[369064354,1751451044646,-480.14,0.00017534,2]
[369064355,1751451044656,-460.0,0.00017534,2]
[369064356,1751451044665,-1185.44,0.00017534,2]
[369064357,1751451044675,-460.0,0.00017534,2]
[369064358,1751451044685,-460.0,0.00017534,2]
[369064359,1751451044695,-493.64,0.00017534,2]
[369064360,1751451044708,-460.0,0.00017534,2]
[369064361,1751451044717,-460.0,0.00017534,2]
[369064362,1751451044727,-579.86,0.00017534,2]
[369064363,1751451044736,-154.5618904,0.00017534,2]
[369064364,1751451044747,-2082.76,0.00017534,2]
[369064365,1751451044756,-460.0,0.00017534,2]
[369064366,1751451044766,-567.67057625,0.00017534,2]
[369064367,1751451044777,-1826.98,0.00017534,2]
[369064368,1751451044787,-550.87,0.00017534,2]
[369064369,1751451044796,-198.2030837,0.00017534,2]
[369064370,1751451044806,-460.0,0.00017534,2]
[369064371,1751451044815,-2622.14,0.00017534,2]
[369064372,1751451044824,-1122.72,0.00017534,2]
[369064373,1751451044834,-460.0,0.00017534,2]
[369064374,1751451044843,-460.0,0.00017534,2]
[369064375,1751451044853,-460.0,0.00017534,2]
[369064376,1751451044862,-460.0,0.00017534,2]
[369064377,1751451044872,-573.86,0.00017534,2]
[369064378,1751451044882,-460.0,0.00017534,2]
[369064379,1751451044891,-460.0,0.00017534,2]
[369064380,1751451044900,-460.0,0.00017534,2]
[369064381,1751451044909,-460.0,0.00017534,2]
[369064382,1751451044919,-477.3,0.00017534,2]
[369064383,1751451044928,-1771.2,0.00017534,2]
[369064384,1751451044939,-463.88,0.00017534,2]
[369064385,1751451044950,-460.0,0.00017534,2]
[369064386,1751451044959,-849.66,0.00017534,2]
[369064387,1751451044968,-2110.0,0.00017534,2]
[369064388,1751451044978,-460.0,0.00017534,2]
[369064389,1751451044988,-461.1,0.00017534,2]
[369064390,1751451044998,-460.0,0.00017534,2]
[369064391,1751451045008,-460.0,0.00017534,2]
[369064392,1751451045017,-460.0,0.00017534,2]
[369064393,1751451045026,-460.0,0.00017534,2]
[369064394,1751451045035,-4213.49,0.00017534,2]
[369064395,1751451045044,-476.74,0.00017534,2]
[369064396,1751451045054,-2839.97,0.00017534,2]
[369064397,1751451045063,-1040.11,0.00017534,2]
[369064398,1751451045073,-460.0,0.00017534,2]
[369064399,1751451045082,-460.0,0.00017534,2]
[369064400,1751451045091,-460.0,0.00017534,2]
[369064401,1751451045102,-647.97,0.00017534,2]
[369064402,1751451045112,-1313.11,0.00017534,2]
[369064403,1751451045122,-910.93,0.00017534,2]
[369064404,1751451045131,-460.0,0.00017534,2]
[369064405,1751451045141,-460.0,0.00017534,2]
[369064406,1751451045151,-726.8,0.00017534,2]
[369064407,1751451045160,-1223.56,0.00017534,2]
[369064408,1751451045169,-460.0,0.00017534,2]
[369064409,1751451045179,-460.0,0.00017534,2]
[369064410,1751451045189,-460.0,0.00017534,2]
[369064411,1751451045199,-460.0,0.00017534,2]
[369064412,1751451045209,-460.0,0.00017534,2]
[369064413,1751451045219,-642.66,0.00017534,2]
[369064424,1751451045436,-460.0,0.00017534,2]
[369064425,1751451045448,-924.26,0.00017534,2]
[369064426,1751451045459,-436.63310236,0.00017577,2]
[369064427,1751451045469,-896.68968258,0.00017595,2]
[369064428,1751451045479,-12573.65100011,0.0001773,2]
[369064429,1751451045490,-160.0,0.0001773,2]
[369064430,1751451045501,-213.90888375,0.0001773,2]
[369064431,1751451045512,-160.0,0.0001773,2]
[369064432,1751451045522,-215.04179405,0.0001773,2]
[369064433,1751451045532,-847.65867985,0.0001773,2]
[369064434,1751451045541,-230.34465076,0.0001773,2]
[369064435,1751451045551,-837.27862799,0.0001773,2]
[369064437,1751451045561,-552.0,0.00017752,2]
[369064439,1751451045571,-1092.51,0.00017807,2]
[369064441,1751451045581,-722.15,0.00017807,2]
[369064443,1751451045590,-460.0,0.00017807,2]
[369064445,1751451045600,-550.53,0.00017807,2]
[369064447,1751451045610,-1373.7,0.00017807,2]
[369064449,1751451045620,-856.9,0.00017807,2]
[369064451,1751451045630,-460.0,0.00017807,2]
[369064453,1751451045640,-815.3,0.00017807,2]
[369064455,1751451045649,-1237.1,0.00017807,2]
[369064457,1751451045660,-464.48,0.00017807,2]
[369064459,1751451045669,-4261.11,0.00017807,2]
[369064460,1751451045679,-460.0,0.00017808,2]
[369064461,1751451045688,-460.0,0.00017808,2]
[369064462,1751451045700,-460.0,0.00017808,2]
[369064463,1751451045711,-460.0,0.00017808,2]
[369064464,1751451045720,-460.0,0.00017808,2]
[369064465,1751451045730,-460.0,0.00017808,2]
[369064466,1751451045739,-366.45793168,0.00017808,2]
[369064467,1751451045749,-729.51,0.00017808,2]
[369064468,1751451045759,-460.0,0.00017808,2]
[369064469,1751451045769,-460.0,0.00017808,2]
[369064470,1751451045779,-460.0,0.00017808,2]
[369064471,1751451045789,-460.0,0.00017808,2]
[369064472,1751451045799,-460.0,0.00017808,2]
[369064473,1751451045808,-460.0,0.00017808,2]
[369064474,1751451045819,-473.03,0.00017808,2]
[369064475,1751451045829,-460.0,0.00017808,2]
[369064476,1751451045839,-460.0,0.00017808,2]
[369064477,1751451045848,-460.0,0.00017808,2]
[369064478,1751451045858,-513.24098135,0.00017808,2]
[369064479,1751451045867,-532.24,0.00017808,2]
[369064480,1751451045877,-530.13,0.00017808,2]
[369064481,1751451045886,-460.0,0.00017808,2]
[369064482,1751451045896,-460.0,0.00017808,2]
[369064483,1751451045906,-464.89,0.00017808,2]
[369064484,1751451045915,-151.0,0.00017808,2]
[369064485,1751451045925,-151.0,0.00017808,2]
[369064487,1751451045934,-151.0,0.00017808,2]
[369064488,1751451045944,-151.0,0.00017808,2]
[369064490,1751451045953,-151.0,0.00017808,2]
[369064492,1751451045962,-460.0,0.00017808,2]
[369064494,1751451045972,-201.291543,0.00017808,2]
[369064496,1751451045981,-460.0,0.00017808,2]
[369064498,1751451045990,-460.0,0.00017808,2]
[369064500,1751451046003,-2899.66,0.00017808,2]
[369064502,1751451046013,-151.0,0.00017808,2]
[369064504,1751451046023,-460.0,0.00017808,2]
[369064506,1751451046032,-460.0,0.00017808,2]
[369064508,1751451046042,-480.14,0.00017808,2]
[369064510,1751451046050,-460.0,0.00017808,2]
[369064512,1751451046060,-1185.44,0.00017808,2]
[369064514,1751451046069,-151.199249,0.00017808,2]
[369064516,1751451046079,-460.0,0.00017808,2]
[369064518,1751451046088,-493.64,0.00017808,2]
[369064520,1751451046099,-151.199249,0.00017808,2]
[369064522,1751451046108,-543.15910438,0.00017808,2]
[369064524,1751451046117,-460.0,0.00017808,2]
[369064526,1751451046128,-151.0,0.00017808,2]
[369064528,1751451046137,-151.0,0.00017808,2]
[369064530,1751451046147,-460.0,0.00017808,2]
[369064536,1751451046189,-579.86,0.00017808,2]
[369064538,1751451046199,-151.0,0.00017808,2]
[369064540,1751451046209,-2082.76,0.00017808,2]
[369064542,1751451046218,-460.0,0.00017808,2]
[369064544,1751451046227,-252.062563,0.00017808,2]
[369064546,1751451046236,-252.062563,0.00017808,2]
[369064548,1751451046246,-1826.98,0.00017808,2]
[369064550,1751451046256,-550.87,0.00017808,2]
[369064552,1751451046265,-151.0,0.00017808,2]
[369064554,1751451046274,-460.0,0.00017808,2]
[369064556,1751451046284,-2622.14,0.00017808,2]
[369064558,1751451046293,-460.0,0.00017808,2]
[369064560,1751451046303,-1122.72,0.00017808,2]
[369064562,1751451046312,-460.0,0.00017808,2]
[369064564,1751451046321,-460.0,0.00017808,2]
[369064566,1751451046331,-460.0,0.00017808,2]
[369064568,1751451046341,-573.86,0.00017808,2]
[369064570,1751451046350,-460.0,0.00017808,2]
[369064572,1751451046360,-663.544171,0.00017808,2]
[369064574,1751451046369,-460.0,0.00017808,2]
[369064576,1751451046378,-663.544171,0.00017808,2]
[369064578,1751451046388,-151.0,0.00017808,2]
[369064580,1751451046397,-460.0,0.00017808,2]
[369064582,1751451046407,-388.59427715,0.00017808,2]
[369064584,1751451046416,-477.3,0.00017808,2]
[369064586,1751451046427,-260.288465,0.00017808,2]
[369064587,1751451046436,-1771.2,0.00017808,2]
[369064589,1751451046445,-463.88,0.00017808,2]
[369064591,1751451046455,-260.288465,0.00017808,2]
[369064593,1751451046464,-460.0,0.00017808,2]
[369064595,1751451046473,-849.66,0.00017808,2]
[369064597,1751451046482,-2110.0,0.00017808,2]
[369064599,1751451046491,-461.1,0.00017808,2]
[369064601,1751451046501,-460.0,0.00017808,2]
[369064603,1751451046509,-460.0,0.00017808,2]
[369064605,1751451046519,-460.0,0.00017808,2]
[369064607,1751451046529,-460.0,0.00017808,2]
[369064609,1751451046538,-4213.49,0.00017808,2]
[369064611,1751451046548,-476.74,0.00017808,2]
[369064613,1751451046557,-2839.97,0.00017808,2]
[369064615,1751451046567,-1040.11,0.00017808,2]
[369064617,1751451046576,-460.0,0.00017808,2]
[369064619,1751451046585,-460.0,0.00017808,2]
[369064621,1751451046594,-460.0,0.00017808,2]
[369064623,1751451046603,-647.97,0.00017808,2]
[369064625,1751451046613,-1313.11,0.00017808,2]
[369064627,1751451046622,-910.93,0.00017808,2]
[369064629,1751451046631,-460.0,0.00017808,2]
[369064631,1751451046640,-460.0,0.00017808,2]
[369064633,1751451046650,-726.8,0.00017808,2]
[369064635,1751451046660,-1223.56,0.00017808,2]
[369064637,1751451046669,-460.0,0.00017808,2]
[369064639,1751451046678,-460.0,0.00017808,2]
[369064641,1751451046688,-460.0,0.00017808,2]
[369064643,1751451046698,-460.0,0.00017808,2]
[369064645,1751451046709,-642.66,0.00017808,2]
[369064647,1751451046719,-460.0,0.00017808,2]
[369064649,1751451046728,-924.26,0.00017808,2]
[369064651,1751451046738,-895.20482716,0.00017831,2]
[369064653,1751451046748,-1500.0,0.00017868,2]
[369064655,1751451046758,-151.0,0.00017917,2]
[369064657,1751451046767,-151.0,0.00017917,2]
[369064660,1751451046780,-316.770002,0.00017917,2]
[369064662,1751451046790,-316.770002,0.00017917,2]
[369064664,1751451046800,-264.548974,0.00017917,2]
[369064666,1751451046809,-264.548974,0.00017917,2]
[369064668,1751451046818,-151.0,0.00017917,2]
[369064669,1751451046827,-988.0,0.00017917,2]
[369064671,1751451046837,-420.0,0.00017951,2]
[369064673,1751451046846,-373.0,0.00017951,2]
[369064675,1751451046855,-204.0,0.00017951,2]
[369064677,1751451046866,-286.18,0.00018,2]
[369064680,1751451046875,-286.18,0.00018,2]
[369064682,1751451046884,-286.18,0.00018,2]
[369064684,1751451046894,-5000.0,0.00018004,2]
[369064685,1751451046903,-988.0,0.00018031,2]
[369064688,1751451046913,-1680.0,0.00018041,2]
[369064690,1751451046922,-1500.0,0.00018068,2]
[369064692,1751451046931,-383.8,0.00018071,3]
[369064693,1751451046940,-151.0,0.00018081,2]
[369064695,1751451046950,-151.0,0.00018081,2]
[369064698,1751451046959,-151.0,0.00018081,2]
[369064699,1751451046968,-151.0,0.00018081,2]
[369064702,1751451046978,-151.0,0.00018081,2]
[369064703,1751451046988,-151.0,0.00018081,2]
[369064706,1751451047000,-151.0,0.00018081,2]
[369064707,1751451047010,-151.0,0.00018081,2]
[369064710,1751451047020,-151.0,0.00018081,2]
[369064712,1751451047032,-151.0,0.00018081,2]
[369064714,1751451047041,-151.0,0.00018081,2]
[369064716,1751451047050,-151.0,0.00018081,2]
[369064718,1751451047060,-151.0,0.00018081,2]
[369064720,1751451047069,-151.0,0.00018081,2]
[369064721,1751451047077,-151.0,0.00018081,2]
[369064723,1751451047086,-1355.690451,0.00018081,2]
[369064725,1751451047095,-1355.690451,0.00018081,2]
[369064727,1751451047104,-151.0,0.00018081,2]
[369064729,1751451047113,-1092.51,0.00018081,2]
[369064731,1751451047122,-722.15,0.00018081,2]
[369064733,1751451047131,-196.55083398,0.00018081,2]
[369064735,1751451047141,-550.53,0.00018081,2]
[369064738,1751451047151,-1373.7,0.00018081,2]
[369064740,1751451047160,-856.9,0.00018081,2]
[369064741,1751451047169,-460.0,0.00018081,2]
[369064743,1751451047178,-815.3,0.00018081,2]
[369064745,1751451047187,-1237.1,0.00018081,2]
[369064747,1751451047196,-464.48,0.00018081,2]
[369064749,1751451047205,-4261.11,0.00018081,2]
[369064751,1751451047214,-151.0,0.00018082,2]
[369064753,1751451047223,-416.53663309,0.00018082,2]
[369064755,1751451047232,-151.0,0.00018082,2]
[369064757,1751451047241,-460.0,0.00018082,2]
[369064759,1751451047251,-151.0,0.00018082,2]
[369064761,1751451047260,-151.0,0.00018082,2]
[369064763,1751451047270,-173.426081,0.00018082,2]
[369064765,1751451047279,-173.426081,0.00018082,2]
[369064767,1751451047292,-514.43493426,0.00018082,2]
[369064769,1751451047301,-460.0,0.00018082,2]
[369064771,1751451047310,-460.0,0.00018082,2]
[369064773,1751451047319,-460.0,0.00018082,2]
[369064775,1751451047328,-729.51,0.00018082,2]
[369064776,1751451047337,-460.0,0.00018082,2]
[369064777,1751451047347,-460.0,0.00018082,2]
[369064778,1751451047356,-460.0,0.00018082,2]
[369064779,1751451047365,-460.0,0.00018082,2]
[369064780,1751451047374,-460.0,0.00018082,2]
[369064781,1751451047383,-460.0,0.00018082,2]
[369064782,1751451047393,-473.03,0.00018082,2]
[369064783,1751451047402,-460.0,0.00018082,2]
[369064784,1751451047411,-460.0,0.00018082,2]
[369064785,1751451047420,-460.0,0.00018082,2]
[369064786,1751451047429,-532.24,0.00018082,2]
[369064787,1751451047438,-530.13,0.00018082,2]
[369064788,1751451047447,-460.0,0.00018082,2]
[369064789,1751451047457,-460.0,0.00018082,2]
[369064790,1751451047466,-464.89,0.00018082,2]
[369064791,1751451047475,-460.0,0.00018082,2]
[369064792,1751451047485,-460.0,0.00018082,2]
[369064793,1751451047494,-460.0,0.00018082,2]
[369064794,1751451047503,-2899.66,0.00018082,2]
[369064795,1751451047513,-460.0,0.00018082,2]
[369064796,1751451047522,-460.0,0.00018082,2]
[369064797,1751451047531,-480.14,0.00018082,2]
[369064798,1751451047541,-460.0,0.00018082,2]
[369064799,1751451047550,-1185.44,0.00018082,2]
[369064800,1751451047560,-493.64,0.00018082,2]
[369064801,1751451047569,-460.0,0.00018082,2]
[369064802,1751451047579,-460.0,0.00018082,2]
[369064803,1751451047588,-579.86,0.00018082,2]
[369064804,1751451047598,-2082.76,0.00018082,2]
[369064805,1751451047607,-460.0,0.00018082,2]
[369064806,1751451047616,-1826.98,0.00018082,2]
[369064807,1751451047626,-550.87,0.00018082,2]
[369064808,1751451047635,-460.0,0.00018082,2]
[369064809,1751451047645,-2622.14,0.00018082,2]
[369064810,1751451047655,-460.0,0.00018082,2]
[369064811,1751451047664,-1122.72,0.00018082,2]
[369064812,1751451047673,-460.0,0.00018082,2]
[369064813,1751451047683,-460.0,0.00018082,2]
[369064814,1751451047692,-460.0,0.00018082,2]
[369064815,1751451047705,-573.86,0.00018082,2]
[369064816,1751451047714,-460.0,0.00018082,2]
[369064817,1751451047723,-460.0,0.00018082,2]
[369064818,1751451047733,-460.0,0.00018082,2]
[369064819,1751451047742,-477.3,0.00018082,2]
[369064820,1751451047752,-1771.2,0.00018082,2]
[369064821,1751451047761,-463.88,0.00018082,2]
[369064822,1751451047771,-460.0,0.00018082,2]
[369064823,1751451047782,-849.66,0.00018082,2]
[369064824,1751451047792,-2110.0,0.00018082,2]
[369064825,1751451047802,-461.1,0.00018082,2]
[369064826,1751451047811,-460.0,0.00018082,2]
[369064827,1751451047821,-460.0,0.00018082,2]
[369064828,1751451047830,-460.0,0.00018082,2]
[369064829,1751451047840,-460.0,0.00018082,2]
[369064830,1751451047850,-4213.49,0.00018082,2]
[369064831,1751451047859,-476.74,0.00018082,2]
[369064832,1751451047869,-2839.97,0.00018082,2]
[369064833,1751451047879,-1040.11,0.00018082,2]
[369064834,1751451047888,-198.88409279,0.00018082,2]
[369064835,1751451047898,-460.0,0.00018082,2]
[369064836,1751451047907,-460.0,0.00018082,2]
[369064837,1751451047917,-647.97,0.00018082,2]
[369064838,1751451047926,-1313.11,0.00018082,2]
[369064839,1751451047935,-910.93,0.00018082,2]
[369064840,1751451047944,-460.0,0.00018082,2]
[369064841,1751451047954,-460.0,0.00018082,2]
[369064842,1751451047964,-726.8,0.00018082,2]
[369064843,1751451047973,-1223.56,0.00018082,2]
[369064844,1751451047983,-460.0,0.00018082,2]
[369064845,1751451047993,-460.0,0.00018082,2]
[369064846,1751451048002,-460.0,0.00018082,2]
[369064847,1751451048012,-460.0,0.00018082,2]
[369064848,1751451048021,-642.66,0.00018082,2]
[369064849,1751451048030,-460.0,0.00018082,2]
[369064850,1751451048039,-924.26,0.00018082,2]
[369064851,1751451048049,-2864.9618803,0.00018082,2]
[369064852,1751451048058,-1001.788285,0.000181,2]
[369064853,1751451048067,-988.0,0.00018122,2]
[369064854,1751451048077,-500.0,0.0001814,2]
[369064855,1751451048086,-501.04471746,0.0001814,2]
[369064856,1751451048095,-895.20482716,0.00018141,2]
[369064857,1751451048105,-988.0,0.00018181,2]
[369064858,1751451048114,-988.0,0.00018249,2]
[369064859,1751451048123,-896.68968258,0.00018304,2]
[369064860,1751451048132,-1000.0,0.00018328,2]
[369064861,1751451048142,-1000.0,0.00018328,2]
[369064862,1751451048151,-1000.0,0.00018328,2]
[369064863,1751451048161,-1000.0,0.00018328,2]
[369064864,1751451048171,-1000.0,0.00018328,2]
[369064865,1751451048181,-460.0,0.00018328,2]
[369064866,1751451048191,-151.901102,0.00018328,2]
[369064867,1751451048201,-502.0,0.00018333,2]
[369064868,1751451048210,-988.0,0.0001834,2]
[369064869,1751451048220,-988.0,0.00018346,2]
[369064870,1751451048230,-151.0,0.00018346,2]
[369064871,1751451048239,-151.0,0.00018346,2]
[369064872,1751451048249,-663.544171,0.00018346,2]
[369064873,1751451048259,-663.544171,0.00018346,2]
[369064874,1751451048269,-260.288465,0.00018346,2]
[369064875,1751451048279,-260.288465,0.00018346,2]
[369064876,1751451048288,-1092.51,0.00018355,2]
[369064877,1751451048298,-722.15,0.00018355,2]
[369064878,1751451048308,-550.53,0.00018355,2]
[369064879,1751451048317,-1373.7,0.00018355,2]
[369064880,1751451048328,-856.9,0.00018355,2]
[369064881,1751451048337,-460.0,0.00018355,2]
[369064882,1751451048347,-815.3,0.00018355,2]
[369064883,1751451048358,-1237.1,0.00018355,2]
[369064884,1751451048368,-464.48,0.00018355,2]
[369064885,1751451048378,-4261.11,0.00018355,2]
[369064886,1751451048388,-460.0,0.00018356,2]
[369064887,1751451048398,-151.0,0.00018356,2]
[369064888,1751451048407,-151.0,0.00018356,2]
[369064889,1751451048417,-278.778831,0.00018356,2]
[369064890,1751451048427,-151.0,0.00018356,2]
[369064891,1751451048437,-250.902005,0.00018356,2]
[369064892,1751451048447,-460.0,0.00018356,2]
[369064893,1751451048457,-460.0,0.00018356,2]
[369064894,1751451048466,-151.0,0.00018356,2]
[369064895,1751451048475,-460.0,0.00018356,2]
[369064896,1751451048485,-729.51,0.00018356,2]
[369064897,1751451048494,-460.0,0.00018356,2]
[369064898,1751451048504,-460.0,0.00018356,2]
[369064899,1751451048513,-151.0,0.00018356,2]
[369064900,1751451048522,-460.0,0.00018356,2]
[369064901,1751451048531,-460.0,0.00018356,2]
[369064902,1751451048540,-460.0,0.00018356,2]
[369064903,1751451048550,-460.0,0.00018356,2]
[369064904,1751451048560,-151.0,0.00018356,2]
[369064905,1751451048570,-473.03,0.00018356,2]
[369064906,1751451048580,-416.140643,0.00018356,2]
[369064907,1751451048589,-151.0,0.00018356,2]
[369064908,1751451048600,-151.0,0.00018356,2]
[369064909,1751451048609,-151.0,0.00018356,2]
[369064910,1751451048619,-240.519655,0.00018356,2]
[369064911,1751451048632,-460.0,0.00018356,2]
[369064912,1751451048642,-151.0,0.00018356,2]
[369064913,1751451048652,-1355.690451,0.00018356,2]
[369064914,1751451048662,-1355.690451,0.00018356,2]
[369064915,1751451048672,-151.0,0.00018356,2]
[369064916,1751451048682,-151.0,0.00018356,2]
[369064917,1751451048692,-460.0,0.00018356,2]
[369064918,1751451048705,-460.0,0.00018356,2]
[369064919,1751451048715,-151.0,0.00018356,2]
[369064920,1751451048725,-532.24,0.00018356,2]
[369064921,1751451048735,-530.13,0.00018356,2]
[369064922,1751451048745,-460.0,0.00018356,2]
[369064923,1751451048755,-460.0,0.00018356,2]
[369064924,1751451048764,-464.89,0.00018356,2]
[369064925,1751451048774,-151.0,0.00018356,2]
[369064926,1751451048785,-316.770002,0.00018356,2]
[369064927,1751451048795,-316.770002,0.00018356,2]
[369064928,1751451048804,-151.0,0.00018356,2]
[369064929,1751451048813,-151.0,0.00018356,2]
[369064930,1751451048822,-151.0,0.00018356,2]
[369064931,1751451048832,-460.0,0.00018356,2]
[369064932,1751451048842,-460.0,0.00018356,2]
[369064933,1751451048852,-264.548974,0.00018356,2]
[369064934,1751451048862,-264.548974,0.00018356,2]
[369064935,1751451048872,-2899.66,0.00018356,2]
[369064936,1751451048882,-460.0,0.00018356,2]
[369064937,1751451048891,-460.0,0.00018356,2]
[369064938,1751451048901,-151.0,0.00018356,2]
[369064939,1751451048910,-480.14,0.00018356,2]
[369064940,1751451048920,-460.0,0.00018356,2]
[369064941,1751451048929,-151.199249,0.00018356,2]
[369064942,1751451048938,-1185.44,0.00018356,2]
[369064943,1751451048948,-151.199249,0.00018356,2]
[369064944,1751451048957,-493.64,0.00018356,2]
[369064945,1751451048967,-460.0,0.00018356,2]
[369064946,1751451048976,-460.0,0.00018356,2]
[369064947,1751451048986,-151.0,0.00018356,2]
[369064948,1751451048996,-579.86,0.00018356,2]
[369064949,1751451049005,-2082.76,0.00018356,2]
[369064950,1751451049015,-460.0,0.00018356,2]
[369064951,1751451049024,-252.062563,0.00018356,2]
[369064952,1751451049035,-252.062563,0.00018356,2]
[369064953,1751451049045,-1826.98,0.00018356,2]
[369064954,1751451049055,-550.87,0.00018356,2]
[369064955,1751451049064,-460.0,0.00018356,2]
[369064956,1751451049074,-2622.14,0.00018356,2]
[369064957,1751451049084,-460.0,0.00018356,2]
[369064958,1751451049093,-1122.72,0.00018356,2]
[369064959,1751451049104,-460.0,0.00018356,2]
[369064960,1751451049113,-460.0,0.00018356,2]
[369064961,1751451049123,-460.0,0.00018356,2]
[369064962,1751451049132,-573.86,0.00018356,2]
[369064963,1751451049141,-460.0,0.00018356,2]
[369064964,1751451049151,-460.0,0.00018356,2]
[369064965,1751451049161,-460.0,0.00018356,2]
[369064966,1751451049170,-1771.2,0.00018356,2]
[369064967,1751451049180,-477.3,0.00018356,2]
[369064968,1751451049189,-463.88,0.00018356,2]
[369064969,1751451049199,-460.0,0.00018356,2]
[369064970,1751451049209,-849.66,0.00018356,2]
[369064971,1751451049219,-2110.0,0.00018356,2]
[369064972,1751451049228,-461.1,0.00018356,2]
[369064973,1751451049239,-331.30579108,0.00018356,2]
[369064974,1751451049248,-460.0,0.00018356,2]
[369064975,1751451049259,-460.0,0.00018356,2]
[369064976,1751451049269,-460.0,0.00018356,2]
[369064977,1751451049278,-4213.49,0.00018356,2]
[369064978,1751451049288,-476.74,0.00018356,2]
[369064979,1751451049298,-2839.97,0.00018356,2]
[369064980,1751451049308,-1040.11,0.00018356,2]
[369064981,1751451049318,-460.0,0.00018356,2]
[369064982,1751451049328,-460.0,0.00018356,2]
[369064983,1751451049338,-647.97,0.00018356,2]
[369064984,1751451049349,-1313.11,0.00018356,2]
[369064985,1751451049359,-910.93,0.00018356,2]
[369064986,1751451049370,-460.0,0.00018356,2]
[369064987,1751451049380,-460.0,0.00018356,2]
[369064988,1751451049390,-726.8,0.00018356,2]
[369064989,1751451049401,-1223.56,0.00018356,2]
[369064990,1751451049411,-460.0,0.00018356,2]
[369064991,1751451049421,-460.0,0.00018356,2]
[369064992,1751451049430,-460.0,0.00018356,2]
[369064993,1751451049440,-642.66,0.00018356,2]
[369064994,1751451049450,-988.0,0.00018366,2]
[369064995,1751451049459,-500.0,0.00018416,2]
[369064996,1751451049469,-895.20482716,0.00018452,2]
[369064997,1751451049479,-988.0,0.00018486,2]
[369064998,1751451049488,-1000.0,0.000186,2]
[369064999,1751451049498,-1257.2143559,0.00018616,2]
[369065000,1751451049508,-153.822867,0.00018629,2]
[369065001,1751451049518,-173.426081,0.00018629,2]
[369065002,1751451049528,-173.426081,0.00018629,2]
[369065003,1751451049537,-1092.51,0.00018629,2]
[369065004,1751451049548,-722.15,0.00018629,2]
[369065005,1751451049558,-550.53,0.00018629,2]
[369065006,1751451049567,-1373.7,0.00018629,2]
[369065007,1751451049577,-856.9,0.00018629,2]
[369065008,1751451049587,-460.0,0.00018629,2]
[369065009,1751451049597,-815.3,0.00018629,2]
[369065010,1751451049607,-1237.1,0.00018629,2]
[369065011,1751451049616,-464.48,0.00018629,2]
[369065012,1751451049627,-4261.11,0.00018629,2]
[369065013,1751451049637,-151.0,0.0001863,2]
[369065014,1751451049646,-559.03953429,0.0001863,2]
[369065015,1751451049656,-151.0,0.0001863,2]
[369065016,1751451049666,-460.0,0.0001863,2]
[369065017,1751451049675,-460.0,0.0001863,2]
[369065018,1751451049685,-460.0,0.0001863,2]
[369065019,1751451049695,-729.51,0.0001863,2]
[369065020,1751451049709,-460.0,0.0001863,2]